bitfinex/quotes_SOLUSD_20230104
["timestamp","ask_amount","ask_price","bid_price","bid_amount"]
[1672806430712,80.3678,13.451,13.439,20.0]
[1672806432307,30.0,13.45,13.439,20.0]
[1672806432499,55.82,13.449,13.439,20.0]
[1672806432710,30.0,13.448,13.438,24.1136]
[1672806432924,75.83,13.447,13.43,80.6351]
[1672806433245,125.7584,13.447,13.43,197.8434]
[1672806433460,204.20433599,13.447,13.43,197.8434]
[1672806433648,49.9284,13.446,13.43,141.9434]
[1672806433863,55.83,13.445,13.43,141.9434]
[1672806434076,49.9284,13.444,13.43,141.9434]
[1672806434293,55.84,13.443,13.43,141.9434]
[1672806434503,105.7684,13.443,13.43,117.2083]
[1672806434722,142.5904494,13.443,13.43,117.2083]
[1672806435034,86.7504494,13.443,13.43,117.2083]
[1672806435661,86.7504494,13.443,13.431,30.0]
[1672806438185,49.9284,13.443,13.43,117.2083]
[1672806439143,86.7504494,13.443,13.43,117.2083]
[1672806440613,30.0,13.442,13.43,117.2083]
[1672806440933,92.6720494,13.441,13.43,117.2083]
[1672806441143,36.8220494,13.441,13.43,117.2083]
[1672806441345,36.8220494,13.44,13.43,117.2083]
[1672806441751,75.18508365,13.439,13.417,43.17]
[1672806441967,20.0,13.438,13.418,20.0]
[1672806442289,55.87,13.437,13.417,208.6542]
[1672806442612,41.2420494,13.436,13.418,48.5358]
[1672806442827,55.88,13.435,13.418,86.7358]
[1672806443132,41.2420494,13.434,13.42,30.0]
[1672806443541,90.5346494,13.434,13.419,54.0939]
[1672806444178,49.2926,13.433,13.42,0.82607319]
[1672806444385,49.2926,13.433,13.42,30.0]
[1672806448813,49.2926,13.433,13.42,71.68]
[1672806456187,49.2926,13.433,13.42,30.0]
[1672806462381,41.15278273,13.432,13.419,66.7439]
[1672806462587,89.94298273,13.432,13.414,55.96]
[1672806462810,89.94298273,13.432,13.408,217.5911]
[1672806462811,124.6802,13.431,13.408,217.5911]
[1672806463017,124.6802,13.431,13.409,30.0]
[1672806463018,299.00899877,13.431,13.409,30.0]
[1672806463228,142.60510876,13.43,13.409,30.0]
[1672806463440,222.3042,13.429,13.412,30.0]
[1672806463638,20.0,13.428,13.412,30.0]
[1672806463854,55.91,13.427,13.412,30.0]
[1672806464065,103.5524,13.427,13.412,30.0]
[1672806464812,47.6424,13.426,13.412,30.0]
[1672806465435,23.2253,13.425,13.412,30.0]
[1672806466071,47.6424,13.425,13.412,30.0]
[1672806473952,47.6424,13.425,13.411,24.5159]
[1672806474480,79.4463,13.424,13.411,24.5159]
[1672806475090,104.2022,13.424,13.41,45.7159]
[1672806475320,48.2822,13.424,13.41,45.7159]
[1672806475737,23.5263,13.423,13.41,45.7159]
[1672806476368,48.2822,13.423,13.41,45.7159]
[1672806478770,48.2822,13.423,13.411,30.0]
[1672806480661,48.2822,13.423,13.41,45.7159]
[1672806484668,48.2822,13.423,13.411,50.0]
[1672806485191,48.2822,13.423,13.411,30.0]
[1672806486989,48.2822,13.423,13.41,45.7159]
[1672806487189,23.9139,13.422,13.411,50.0]
[1672806488854,117.614,13.429,13.412,55.30152883]
[1672806489075,117.614,13.429,13.413,50.0]
[1672806489292,117.614,13.429,13.414,35.47]
[1672806489512,117.614,13.429,13.415,20.0]
[1672806489705,117.614,13.429,13.416,69.24]
[1672806489913,117.614,13.429,13.417,20.0]
[1672806490141,117.614,13.429,13.418,72.19]
[1672806490333,117.614,13.429,13.42,30.0]
[1672806490545,117.614,13.429,13.421,20.0]
[1672806493935,117.614,13.429,13.422,30.0]
[1672806494759,47.4568,13.43,13.422,30.0]
[1672806495295,385.95972001,13.458,13.422,30.0]
[1672806495296,36.23295693,13.451,13.422,52.13152883]
[1672806495500,47.9849,13.443,13.423,123.0178]
[1672806495700,47.9849,13.442,13.425,30.0]
[1672806495910,103.8349,13.441,13.426,67.0878]
[1672806496114,46.731,13.44,13.426,67.0878]
[1672806496328,55.86,13.439,13.426,67.0878]
[1672806496559,102.591,13.439,13.426,67.0878]
[1672806497083,46.731,13.439,13.426,67.0878]
[1672806498977,46.731,13.439,13.426,47.0878]
[1672806499165,75.86,13.438,13.421,47.19]
[1672806499376,232.9475,13.438,13.421,47.19]
[1672806499596,177.0875,13.438,13.421,47.19]
[1672806499815,55.87,13.437,13.422,30.0]
[1672806500127,45.7421,13.437,13.422,30.0]
[1672806500653,45.7421,13.437,13.424,30.0]
[1672806501381,45.7421,13.437,13.426,30.0]
[1672806501589,45.7421,13.437,13.427,20.0]
[1672806503369,45.7421,13.437,13.428,30.0]
[1672806503577,45.7421,13.437,13.429,20.0]
[1672806506746,45.7421,13.437,13.424,79.4]
[1672806506747,45.7421,13.437,13.418,30.0]
[1672806506954,101.3212,13.436,13.421,20.0]
[1672806507172,45.4512,13.435,13.421,20.0]
[1672806507380,55.88,13.434,13.42,156.5284]
[1672806507697,101.3312,13.434,13.421,30.0]
[1672806507883,157.47516402,13.434,13.42,156.5284]
[1672806508429,22.8596,13.433,13.42,156.5284]
[1672806508633,55.89,13.432,13.42,156.5284]
[1672806508844,102.05573619,13.432,13.42,133.5196]
[1672806509037,104.43736869,13.431,13.42,133.5196]
[1672806509254,55.9,13.43,13.42,109.8064]
[1672806509460,103.29496583,13.43,13.401,34.32]
[1672806509666,103.29496583,13.43,13.402,50.0]
[1672806509667,148.12816402,13.429,13.402,50.0]
[1672806509876,55.9,13.428,13.404,30.0]
[1672806510091,127.8842,13.428,13.406,30.0]
[1672806510300,127.8842,13.428,13.407,38.14]
[1672806510521,48.0358,13.427,13.409,30.0]
[1672806510734,55.91,13.426,13.409,70.51]
[1672806510955,103.9458,13.426,13.409,70.51]
[1672806511768,103.9458,13.426,13.411,30.0]
[1672806512930,197.50650202,13.426,13.409,70.51]
[1672806513135,197.50650202,13.426,13.409,30.0]
[1672806514111,197.50650202,13.426,13.41,20.0]
[1672806514444,150.11153619,13.426,13.411,30.0]
[1672806514968,47.39496583,13.425,13.411,30.0]
[1672806515155,55.92,13.424,13.411,30.0]
[1672806516519,48.9107,13.425,13.413,30.0]
[1672806516746,48.9107,13.425,13.414,62.07]
[1672806516945,23.9484,13.428,13.415,30.0]
[1672806517156,23.9484,13.428,13.416,64.06]
[1672806517379,23.9484,13.428,13.417,30.0]
[1672806517569,23.9484,13.428,13.419,30.0]
[1672806517778,104.8007,13.431,13.419,30.0]
[1672806518004,104.8007,13.431,13.42,20.0]
[1672806518952,48.9107,13.431,13.42,20.0]
[1672806519171,48.9107,13.431,13.418,20.0]
[1672806519353,168.3169,13.43,13.418,20.0]
[1672806520727,168.3169,13.43,13.413,30.0]
[1672806520937,20.0,13.429,13.411,23.3319]
[1672806521151,55.9,13.428,13.411,23.3319]
[1672806521359,47.7714,13.427,13.411,23.3319]
[1672806521576,55.91,13.426,13.411,23.3319]
[1672806521898,103.6814,13.426,13.412,30.0]
[1672806522105,103.6814,13.426,13.411,53.3319]
[1672806522845,103.6814,13.426,13.412,30.0]
[1672806523057,103.6814,13.426,13.411,53.3319]
[1672806524089,103.6814,13.426,13.411,23.3319]
[1672806525051,103.6814,13.426,13.412,30.0]
[1672806526951,47.7714,13.426,13.412,30.0]
[1672806527253,47.7714,13.426,13.412,52.13152883]
[1672806527469,55.9,13.428,13.412,52.13152883]
[1672806527669,55.9,13.429,13.414,30.0]
[1672806527883,55.9,13.429,13.415,46.13]
[1672806528089,135.9958,13.43,13.417,30.0]
[1672806528419,135.9958,13.43,13.418,20.0]
[1672806529469,55.9,13.429,13.418,20.0]
[1672806530088,55.9,13.429,13.415,20.0]
[1672806532079,55.9,13.429,13.416,30.0]
[1672806532288,135.9958,13.43,13.417,20.0]
[1672806532499,135.9958,13.43,13.419,30.0]
[1672806532753,135.9958,13.43,13.42,20.0]
[1672806533129,135.9958,13.43,13.421,30.0]
[1672806533545,135.9958,13.43,13.42,20.0]
[1672806534297,135.9958,13.43,13.418,30.0]
[1672806534298,135.9958,13.43,13.419,20.0]
[1672806534507,135.9958,13.43,13.417,20.0]
[1672806534698,55.9,13.429,13.417,20.0]
[1672806535132,55.9,13.429,13.412,55.97]
[1672806535348,55.9,13.429,13.411,23.3319]
[1672806535349,20.0,13.428,13.411,23.3319]
[1672806535548,102.9829,13.427,13.411,23.3319]
[1672806536194,47.0729,13.426,13.41,116.4966]
[1672806536414,102.9929,13.425,13.41,116.4966]
[1672806538064,102.9929,13.425,13.411,30.0]
[1672806538709,47.0729,13.425,13.411,30.0]
[1672806538926,47.0729,13.425,13.411,77.63]
[1672806539243,47.0729,13.425,13.411,99.76152883]
[1672806540596,47.0729,13.425,13.412,22.13152883]
[1672806541022,24.4257,13.428,13.413,66.93]
[1672806541213,24.4257,13.428,13.414,30.0]
[1672806541424,24.4257,13.428,13.416,30.0]
[1672806541634,24.4257,13.428,13.418,30.0]
[1672806542065,24.4257,13.428,13.419,20.0]
[1672806542595,46.3719,13.429,13.419,20.0]
[1672806543001,46.3719,13.429,13.414,30.0]
[1672806543002,6.82104883,13.417,13.383,261.04000389]
[1672806543212,78.82646152,13.416,13.384,111.5608]
[1672806543427,98.82646152,13.416,13.385,30.0]
[1672806543848,185.7841,13.415,13.385,100.768]
[1672806544052,75.96,13.414,13.385,100.768]
[1672806544278,30.0,13.412,13.385,100.768]
[1672806544599,146.1655,13.411,13.385,100.768]
[1672806544791,30.0,13.41,13.385,100.768]
[1672806545125,19.18672675,13.408,13.385,100.768]
[1672806545310,19.18672675,13.406,13.385,100.768]
[1672806545521,56.0,13.405,13.385,100.768]
[1672806545846,56.0,13.406,13.385,100.768]
[1672806546064,56.0,13.406,13.387,30.0]
[1672806546277,56.0,13.406,13.388,38.23]
[1672806546470,56.0,13.406,13.389,30.0]
[1672806546680,56.0,13.406,13.391,30.0]
[1672806547418,23.0472,13.407,13.393,30.0]
[1672806547632,23.0472,13.407,13.394,60.07]
[1672806547842,23.0472,13.407,13.395,30.0]
[1672806548053,23.0472,13.407,13.397,30.0]
[1672806548261,23.0472,13.407,13.398,20.0]
[1672806549434,23.0472,13.407,13.399,30.0]
[1672806549623,23.0472,13.407,13.4,20.0]
[1672806549954,159.1182,13.412,13.4,20.0]
[1672806550159,46.0265,13.412,13.4,20.0]
[1672806551965,46.0265,13.412,13.38,30.0]
[1672806551966,30.0,13.41,13.38,30.0]
[1672806552155,193.1823,13.409,13.388,109.2726]
[1672806552367,30.0,13.408,13.388,109.2726]
[1672806552585,75.99,13.407,13.388,109.2726]
[1672806552799,75.99,13.407,13.389,30.0]
[1672806553001,75.99,13.407,13.388,109.2726]
[1672806553326,30.0,13.406,13.388,109.2726]
[1672806553544,56.0,13.405,13.389,20.0]
[1672806553731,56.0,13.405,13.388,109.2726]
[1672806554379,56.0,13.406,13.388,109.2726]
[1672806555119,30.0,13.405,13.389,20.0]
[1672806555425,30.0,13.403,13.389,20.0]
[1672806555646,56.01,13.402,13.389,20.0]
[1672806555853,30.0,13.401,13.389,20.0]
[1672806556064,56.02,13.4,13.389,20.0]
[1672806556256,56.02,13.4,13.385,19.51606674]
[1672806557113,56.02,13.401,13.385,19.51606674]
[1672806559017,30.0,13.4,13.385,19.51606674]
[1672806559318,56.03,13.399,13.385,19.51606674]
[1672806559737,10.0944218,13.398,13.381,116.1188]
[1672806559949,76.03,13.397,13.381,116.1188]
[1672806562371,30.0,13.396,13.381,116.1188]
[1672806562684,56.04,13.395,13.381,116.1188]
[1672806563513,56.04,13.395,13.382,30.0]
[1672806563722,65.5431,13.397,13.382,30.0]
[1672806563723,56.04,13.396,13.382,30.0]
[1672806564135,56.04,13.396,13.381,116.1188]
[1672806567508,65.5431,13.397,13.381,116.1188]
[1672806568979,56.04,13.396,13.381,116.1188]
[1672806569401,65.5431,13.397,13.381,116.1188]
[1672806571302,56.04,13.396,13.381,116.1188]
[1672806571499,65.5431,13.397,13.381,116.1188]
[1672806572771,65.5431,13.397,13.382,30.0]
[1672806573082,45.5431,13.397,13.382,30.0]
[1672806573699,24.6477,13.399,13.382,30.0]
[1672806574141,24.6477,13.399,13.384,30.0]
[1672806574351,24.6477,13.399,13.386,30.0]
[1672806574570,24.6477,13.399,13.387,20.0]
[1672806574969,24.6477,13.399,13.388,30.0]
[1672806575179,24.6477,13.399,13.389,20.0]
[1672806575602,86.73868464,13.398,13.385,51.70644412]
[1672806575847,76.03,13.398,13.368,129.77192806]
[1672806576026,76.03,13.398,13.377,76.5694]
[1672806576351,76.03,13.398,13.377,125.72116858]
[1672806576538,123.8337,13.398,13.377,125.72116858]
[1672806576749,123.8337,13.398,13.377,76.5694]
[1672806577508,30.0,13.397,13.377,76.5694]
[1672806577701,56.04,13.396,13.377,76.5694]
[1672806579500,30.0,13.395,13.377,76.5694]
[1672806579695,56.05,13.394,13.377,76.5694]
[1672806580753,56.05,13.394,13.377,46.5694]
[1672806581169,30.0,13.393,13.377,46.5694]
[1672806581380,56.06,13.392,13.377,46.5694]
[1672806582024,56.06,13.392,13.376,23.9886]
[1672806582228,60.70868464,13.391,13.367,30.0]
[1672806582433,56.06,13.39,13.368,20.0]
[1672806582648,20.0,13.389,13.368,20.0]
[1672806582849,215.0523,13.388,13.369,108.6539]
[1672806583061,20.0,13.387,13.37,30.0]
[1672806583608,67.6744,13.387,13.37,30.0]
[1672806587291,67.6744,13.387,13.37,52.13152883]
[1672806590321,47.7379,13.386,13.37,52.13152883]
[1672806593391,47.7379,13.386,13.371,22.13152883]
[1672806593582,47.7379,13.386,13.372,30.0]
[1672806594004,47.7379,13.386,13.373,22.13152883]
[1672806596526,47.7379,13.386,13.37,46.6595]
[1672806596740,47.7379,13.386,13.371,22.13152883]
[1672806596951,103.8179,13.386,13.371,22.13152883]
[1672806599697,30.0,13.385,13.371,22.13152883]
[1672806600015,30.0,13.383,13.37,46.6595]
[1672806600325,30.0,13.381,13.37,46.6595]
[1672806600534,56.1,13.382,13.369,108.6539]
[1672806600747,56.09,13.383,13.37,20.0]
[1672806602625,47.1318,13.384,13.37,20.0]
[1672806603249,47.1318,13.384,13.371,22.13152883]
[1672806603879,47.1318,13.384,13.372,30.0]
[1672806604308,47.1318,13.384,13.373,22.13152883]
[1672806604720,47.1318,13.384,13.37,20.0]
[1672806604947,47.1318,13.384,13.371,22.13152883]
[1672806605158,47.1318,13.384,13.371,52.13152883]
[1672806605981,47.1318,13.384,13.372,22.13152883]
[1672806608317,47.1318,13.384,13.37,20.0]
[1672806608730,47.1318,13.384,13.371,22.13152883]
[1672806608938,47.1318,13.384,13.372,30.0]
[1672806609151,47.1318,13.384,13.37,20.0]
[1672806609365,47.1318,13.384,13.37,50.0]
[1672806609679,47.1318,13.384,13.37,72.13152883]
[1672806609884,47.1318,13.384,13.37,20.0]
[1672806610620,30.0,13.382,13.37,20.0]
[1672806610831,30.0,13.38,13.37,20.0]
[1672806611365,56.1,13.381,13.37,20.0]
[1672806611765,158.8948,13.382,13.37,20.0]
[1672806612936,30.0,13.381,13.37,20.0]
[1672806613135,64.95687547,13.381,13.37,20.0]
[1672806613345,56.11,13.38,13.37,20.0]
[1672806613555,30.0,13.379,13.37,20.0]
[1672806618282,67.6843708,13.379,13.37,20.0]
[1672806618499,107.09424538,13.379,13.369,108.6539]
[1672806618710,107.09424538,13.379,13.345,171.88762143]
[1672806618711,30.0,13.377,13.349,30.0]
[1672806618929,214.4338,13.376,13.363,22.13152883]
[1672806619536,158.3138,13.376,13.363,22.13152883]
[1672806621542,158.3138,13.376,13.364,50.0]
[1672806621754,56.08,13.386,13.364,50.0]
[1672806621975,165.4888,13.381,13.365,22.13152883]
[1672806622290,165.4888,13.381,13.366,20.0]
[1672806622602,165.4888,13.381,13.367,22.13152883]
[1672806622918,165.4888,13.381,13.369,30.0]
[1672806623122,165.4888,13.381,13.37,20.0]
[1672806623321,165.4888,13.381,13.37,45.02252883]
[1672806623526,165.4888,13.381,13.371,22.13152883]
[1672806626277,56.08,13.385,13.371,22.13152883]
[1672806626473,221.8494,13.391,13.373,30.0]
[1672806626684,221.8494,13.391,13.374,20.0]
[1672806626894,221.8494,13.391,13.374,42.13152883]
[1672806627104,221.8494,13.391,13.375,22.13152883]
[1672806627309,221.8494,13.391,13.376,20.0]
[1672806627746,165.7894,13.391,13.377,77.73739031]
[1672806628155,165.7894,13.391,13.378,99.81522365]
[1672806628364,165.7894,13.391,13.379,30.0]
[1672806628584,165.7894,13.391,13.38,20.0]
[1672806628907,165.7894,13.391,13.38,42.13152883]
[1672806629091,165.7894,13.391,13.38,20.0]
[1672806629305,165.7894,13.391,13.377,20.0]
[1672806630258,165.7894,13.391,13.378,22.13152883]
[1672806630465,165.7894,13.391,13.379,20.0]
[1672806631003,165.7894,13.391,13.38,22.13152883]
[1672806634684,165.7894,13.391,13.38,79.81522365]
[1672806635084,165.7894,13.391,13.381,52.13152883]
[1672806635518,165.7894,13.391,13.382,22.13152883]
[1672806635734,56.04,13.396,13.382,22.13152883]
[1672806635931,236.5394,13.406,13.393,165.47915844]
[1672806638778,236.5394,13.406,13.394,30.0]
[1672806639100,236.5394,13.406,13.393,187.61068727]
[1672806641091,30.0,13.413,13.394,30.0]
[1672806641297,55.97,13.412,13.395,20.0]
[1672806641495,55.97,13.413,13.396,30.0]
[1672806641705,103.2707,13.413,13.397,20.0]
[1672806643177,103.2707,13.413,13.398,22.13152883]
[1672806643387,47.3007,13.413,13.4,30.0]
[1672806643928,47.3007,13.413,13.4,52.13152883]
[1672806644119,47.3007,13.413,13.4,22.13152883]
[1672806644330,47.3007,13.413,13.401,30.0]
[1672806644540,47.3007,13.413,13.4,22.13152883]
[1672806645171,47.3007,13.413,13.401,30.0]
[1672806645393,47.3007,13.413,13.4,22.13152883]
[1672806645591,47.3007,13.413,13.398,59.11]
[1672806645592,47.3007,13.413,13.402,22.13152883]
[1672806649278,55.97,13.412,13.397,67.1335]
[1672806649493,55.97,13.412,13.362,76.75537832]
[1672806649494,50.0,13.411,13.384,33.96]
[1672806649714,30.0,13.409,13.383,33.97]
[1672806649931,55.99,13.408,13.387,22.13152883]
[1672806650122,50.0,13.407,13.388,28.3]
[1672806650465,30.0,13.405,13.389,114.5634]
[1672806650765,56.0,13.404,13.389,114.5634]
[1672806650962,56.0,13.405,13.389,114.5634]
[1672806651591,30.0,13.404,13.389,114.5634]
[1672806652229,137.18568173,13.404,13.389,114.5634]
[1672806652863,107.18568173,13.404,13.389,114.5634]
[1672806653070,51.18568173,13.404,13.389,114.5634]
[1672806653694,56.01,13.403,13.389,114.5634]
[1672806654335,51.18568173,13.403,13.389,114.5634]
[1672806655611,30.0,13.402,13.389,114.5634]
[1672806656126,56.0,13.405,13.389,114.5634]
[1672806656342,51.18568173,13.403,13.389,114.5634]
[1672806661067,116.71868464,13.402,13.389,114.5634]
[1672806661484,30.0,13.4,13.389,114.5634]
[1672806661694,30.0,13.398,13.389,114.5634]
[1672806661904,56.03,13.397,13.389,114.5634]
[1672806662114,30.0,13.396,13.389,114.5634]
[1672806662430,30.0,13.396,13.378,30.0]
[1672806662641,92.85401507,13.396,13.378,30.0]
[1672806663052,92.85401507,13.396,13.38,30.0]
[1672806666971,62.85401507,13.396,13.379,113.9413]
[1672806667289,166.7309,13.395,13.38,20.0]
[1672806668331,249.788988,13.395,13.38,20.0]
[1672806670434,249.788988,13.395,13.38,50.0]
[1672806670751,249.788988,13.395,13.38,20.0]
[1672806671801,166.7309,13.395,13.38,20.0]
[1672806672014,166.7309,13.395,13.38,50.0]
[1672806672338,166.7309,13.395,13.38,20.0]
[1672806675380,166.7309,13.395,13.381,3.049]
[1672806676519,166.7309,13.395,13.38,31.44]
[1672806676728,166.7309,13.395,13.381,30.0]
[1672806676937,166.7309,13.395,13.38,31.44]
[1672806677565,166.7309,13.395,13.381,30.0]
[1672806677776,86.05,13.394,13.381,22.13152883]
[1672806677984,86.05,13.394,13.38,20.0]
[1672806677985,121.64381825,13.394,13.38,20.0]
[1672806678196,55.65638812,13.393,13.38,20.0]
[1672806678404,140.28231825,13.394,13.38,20.0]
[1672806678405,104.6885,13.394,13.381,22.13152883]
[1672806679272,104.6885,13.394,13.38,20.0]
[1672806680099,104.6885,13.394,13.381,22.13152883]
[1672806680640,104.6885,13.394,13.382,30.0]
[1672806680842,48.6385,13.394,13.383,20.0]
[1672806681033,48.6385,13.394,13.384,56.74]
[1672806681245,48.6385,13.394,13.384,78.87152883]
[1672806681454,23.8271,13.399,13.385,42.13152883]
[1672806681667,23.8271,13.399,13.387,30.0]
[1672806681884,23.8271,13.399,13.389,30.0]
[1672806682083,23.8271,13.399,13.39,20.0]
[1672806682859,173.6355,13.403,13.39,20.0]
[1672806682860,56.01,13.403,13.39,42.13152883]
[1672806683054,264.6,13.429,13.39,42.13152883]
[1672806683055,270.7863,13.416,13.391,72.1]
[1672806683260,70.6191,13.415,13.392,20.0]
[1672806683471,55.96,13.414,13.392,42.13152883]
[1672806683678,101.05421373,13.414,13.393,52.13152883]
[1672806683874,46.7397,13.413,13.393,143.43542883]
[1672806684202,55.97,13.412,13.395,30.0]
[1672806684423,103.5007,13.412,13.395,73.19]
[1672806684612,103.5007,13.412,13.396,42.13152883]
[1672806684826,103.5007,13.412,13.397,30.0]
[1672806685153,103.5007,13.412,13.398,20.0]
[1672806685767,103.5007,13.412,13.399,22.13152883]
[1672806685973,103.5007,13.412,13.4,20.0]
[1672806686414,103.5007,13.412,13.4,42.13152883]
[1672806687476,47.5307,13.412,13.4,42.13152883]
[1672806687670,55.96,13.415,13.4,42.13152883]
[1672806688000,172.8287,13.42,13.402,30.0]
[1672806688214,172.8287,13.42,13.403,64.17]
[1672806688433,172.8287,13.42,13.404,30.0]
[1672806688617,172.8287,13.42,13.405,20.0]
[1672806688949,211.77218492,13.42,13.405,20.0]
[1672806689360,258.77719684,13.42,13.405,20.0]
[1672806689565,258.77719684,13.42,13.406,30.0]
[1672806689766,172.8287,13.42,13.406,30.0]
[1672806689982,172.8287,13.42,13.405,42.13152883]
[1672806690193,38.94348492,13.419,13.405,20.0]
[1672806690403,55.95,13.418,13.405,20.0]
[1672806691575,55.95,13.418,13.405,42.13152883]
[1672806691789,55.94,13.419,13.405,42.13152883]
[1672806692836,38.94348492,13.418,13.405,42.13152883]
[1672806693255,38.94348492,13.418,13.401,75.8742]
[1672806693256,75.95,13.417,13.401,45.8742]
[1672806693775,30.0,13.415,13.401,45.8742]
[1672806693987,75.96,13.414,13.387,48.17]
[1672806694184,75.96,13.414,13.372,127.78430122]
[1672806694185,208.18872187,13.414,13.377,207.6056]
[1672806694520,30.0,13.412,13.379,30.0]
[1672806694839,30.0,13.41,13.38,132.17792883]
[1672806695023,55.98,13.409,13.381,30.0]
[1672806695357,30.0,13.408,13.383,30.0]
[1672806695570,75.99,13.407,13.384,53.54]
[1672806695761,30.0,13.406,13.384,55.67152883]
[1672806695966,56.0,13.405,13.385,22.13152883]
[1672806696176,56.0,13.405,13.386,31.85]
[1672806696395,95.28919825,13.405,13.385,22.13152883]
[1672806696601,39.28919825,13.404,13.388,30.0]
[1672806696825,56.01,13.403,13.388,30.0]
[1672806697021,56.01,13.403,13.389,22.13152883]
[1672806697231,56.0,13.405,13.389,42.13152883]
[1672806697657,39.28919825,13.404,13.389,42.13152883]
[1672806697879,56.01,13.403,13.389,42.13152883]
[1672806698503,56.01,13.403,13.39,22.13152883]
[1672806701541,56.0,13.405,13.39,22.13152883]
[1672806701768,30.0,13.404,13.39,22.13152883]
[1672806701979,56.01,13.403,13.39,22.13152883]
[1672806702630,56.0,13.405,13.39,22.13152883]
[1672806705239,68.9342,13.406,13.39,22.13152883]
[1672806705449,117.70837373,13.407,13.39,51.03152883]
[1672806705450,20.0,13.407,13.39,51.03152883]
[1672806705656,55.98,13.409,13.391,20.0]
[1672806705858,55.98,13.41,13.392,59.54]
[1672806706069,35.76512359,13.409,13.393,20.0]
[1672806706278,35.76512359,13.409,13.393,42.13152883]
[1672806706719,35.76512359,13.409,13.394,22.13152883]
[1672806706922,75.99,13.408,13.392,116.7594]
[1672806707134,30.0,13.407,13.392,116.7594]
[1672806707344,56.0,13.406,13.392,138.89092883]
[1672806707555,56.0,13.406,13.392,22.13152883]
[1672806708406,56.0,13.406,13.389,119.6574]
[1672806708610,55.99,13.407,13.39,42.13152883]
[1672806709021,55.99,13.407,13.391,22.13152883]
[1672806710699,103.9044,13.407,13.391,22.13152883]
[1672806712387,103.9044,13.407,13.392,30.0]
[1672806712608,103.9044,13.407,13.391,22.13152883]
[1672806712926,103.9044,13.407,13.393,22.13152883]
[1672806713971,55.99,13.407,13.394,30.0]
[1672806714192,24.1397,13.409,13.395,20.0]
[1672806714384,24.1397,13.409,13.395,42.13152883]
[1672806714605,92.06547692,13.408,13.395,42.13152883]
[1672806714916,36.07547692,13.407,13.395,20.0]
[1672806715126,36.07547692,13.407,13.393,22.13152883]
[1672806715341,36.07547692,13.407,13.394,20.0]
[1672806715540,36.07547692,13.407,13.394,50.0]
[1672806715748,55.99,13.408,13.394,72.13152883]
[1672806715958,55.99,13.408,13.395,30.0]
[1672806716284,55.99,13.408,13.396,20.0]
[1672806716493,80.1197,13.409,13.396,20.0]
[1672806717138,80.1197,13.409,13.397,22.13152883]
[1672806717326,24.1397,13.409,13.398,20.0]
[1672806717751,24.1397,13.409,13.399,52.13152883]
[1672806718071,24.1397,13.409,13.401,30.0]
[1672806718269,159.9755,13.411,13.401,30.0]
[1672806718471,159.9755,13.411,13.402,22.13152883]